bitfinex-derivatives/quotes_ETHF0:USTF0_20250614
["timestamp","ask_amount","ask_price","bid_price","bid_amount"]
[1749908322938,1.77644092,2537.5,2537.4,3.99569]
[1749908323337,0.98857092,2537.5,2537.4,3.99569]
[1749908324340,1.77644092,2537.5,2537.4,3.99569]
[1749908324937,1.77644092,2537.5,2537.4,5.30269]
[1749908327545,1.77701474,2537.5,2537.4,5.30269]
[1749908329948,1.77701474,2537.5,2537.4,4.5148]
[1749908330148,1.77701474,2537.5,2537.4,3.2078]
[1749908330545,1.77701474,2537.5,2537.4,3.9957]
[1749908330950,1.77701474,2537.5,2537.4,3.2078]
[1749908331550,0.78793,2537.3,2537.2,2.09525]
[1749908331754,1.47752,2537.4,2537.3,0.7879]
[1749908332054,2.46711916,2537.4,2537.3,0.7879]
[1749908333555,1.67919916,2537.4,2537.3,0.7879]
[1749908333749,0.98959916,2537.4,2537.3,3.9957]
[1749908333950,0.98959916,2537.4,2537.3,5.3134]
[1749908334850,0.78776,2537.9,2537.8,0.78777]
[1749908335156,3.2078,2538.0,2537.9,0.78774]
[1749908335953,3.99551,2538.0,2537.9,0.78774]
[1749908336655,0.78777,2537.9,2537.8,0.78775]
[1749908337255,6.97974,2538.0,2537.9,0.78774]
[1749908338050,6.192,2538.0,2537.9,0.78774]
[1749908338353,0.78777,2537.8,2537.7,0.6798]
[1749908339153,0.78777,2537.8,2537.7,1.4676]
[1749908340759,0.78777,2537.8,2537.7,0.6798]
[1749908340961,0.7878,2537.7,2537.6,3.2078]
[1749908341162,1.4399,2537.7,2537.6,3.99564]
[1749908342363,0.7878,2537.7,2537.6,3.99564]
[1749908342866,0.7878,2537.7,2537.6,3.2078]
[1749908344473,0.78793,2537.3,2537.2,5.27996]
[1749908346962,1.76262798,2537.3,2537.2,5.27996]
[1749908347167,0.97469798,2537.3,2537.2,5.27996]
[1749908347664,0.97469798,2537.3,2537.2,2.07216]
[1749908347868,0.97469798,2537.3,2537.2,5.27996]
[1749908349572,1.76262798,2537.3,2537.2,5.27996]
[1749908350170,0.97469798,2537.3,2537.2,5.27996]
[1749908351272,1.76262798,2537.3,2537.2,5.27996]
[1749908351475,0.97469798,2537.3,2537.2,5.27996]
[1749908351774,1.76262798,2537.3,2537.2,5.27996]
[1749908351975,0.97469798,2537.3,2537.2,5.27996]
[1749908353472,1.76262798,2537.3,2537.2,5.27996]
[1749908353670,0.97469798,2537.3,2537.2,5.27996]
[1749908355668,0.78792,2537.4,2537.3,0.78793]
[1749908355979,1.76263713,2537.4,2537.3,0.78793]
[1749908357881,0.78793,2537.3,2537.2,0.78795]
[1749908358176,1.76264713,2537.3,2537.2,0.78795]
[1749908379312,0.97471713,2537.3,2537.2,0.78795]
[1749908379797,0.78779,2537.8,2537.7,0.78777]
[1749908380404,3.99556,2537.9,2537.8,0.78777]
[1749908380704,0.78772,2538.0,2537.9,0.78774]
[1749908381203,3.20780156,2538.2,2537.7,4.5212]
[1749908381505,3.99548156,2538.2,2538.1,0.78768]
[1749908382707,3.20780156,2538.2,2538.1,0.78768]
[1749908383514,1.56e-06,2538.2,2538.1,0.78768]
[1749908383707,1.56e-06,2538.2,2538.1,2.15018]
[1749908388913,1.56e-06,2538.2,2538.1,7.15018]
[1749908390515,1.56e-06,2538.2,2538.1,2.15018]
[1749908393811,1.56e-06,2538.2,2538.1,7.15018]
[1749908399024,1.56e-06,2538.2,2538.1,10.35798]
[1749908400221,1.56e-06,2538.2,2538.1,29.35598]
[1749908403328,1.56e-06,2538.2,2538.1,27.99348]
[1749908403629,1.56e-06,2538.2,2538.1,27.99248]
[1749908404331,1.56e-06,2538.2,2538.1,3.99548]
[1749908404625,1.56e-06,2538.2,2538.1,27.99248]
[1749908410726,1.56e-06,2538.2,2538.1,27.99148]
[1749908410920,0.63680156,2538.2,2538.1,27.99148]
[1749908412417,1.56e-06,2538.2,2538.1,27.99148]
[1749908412619,1.56e-06,2538.2,2538.1,30.35043043]
[1749908412824,1.56e-06,2538.2,2538.1,31.70143043]
[1749908413836,1.56e-06,2538.2,2538.1,29.34248]
[1749908414038,1.56e-06,2538.2,2538.1,31.6951766]
[1749908414330,1.56e-06,2538.2,2538.1,29.34248]
[1749908415824,1.56e-06,2538.2,2538.1,27.99148]
[1749908416029,1.56e-06,2538.2,2538.1,36.53164555]
[1749908417426,1.56e-06,2538.2,2538.1,6.34964555]
[1749908417634,1.56e-06,2538.2,2538.1,30.34464555]
[1749908419833,1.56e-06,2538.2,2538.1,27.99048]
[1749908420131,1.56e-06,2538.2,2538.1,3.99548]
[1749908420333,1.35920156,2538.2,2538.1,30.34462643]
[1749908422635,1.35920156,2538.2,2538.1,6.35062643]
[1749908422831,1.35920156,2538.2,2538.1,30.34462643]
[1749908423036,1.35920156,2538.2,2538.1,27.98948]
[1749908423233,2.3369172,2538.2,2538.1,27.98948]
[1749908423438,3.1245672,2538.2,2538.1,27.2018]
[1749908423627,2.3369172,2538.2,2538.1,27.98948]
[1749908423832,3.1245672,2538.2,2538.1,27.98948]
[1749908424027,2.3369172,2538.2,2538.1,27.98948]
[1749908425227,1.35920156,2538.2,2538.1,27.98948]
[1749908426136,7.33651412,2538.2,2537.9,2.35514643]
[1749908426443,0.78774,2537.9,2537.8,3.2078]
[1749908426835,1.76505256,2537.9,2537.8,3.2078]
[1749908427343,7.94905256,2537.9,2537.8,3.2078]
[1749908427842,0.78789,2537.5,2537.4,27.98967]
[1749908428549,0.78786,2537.6,2537.5,0.78784]
[1749908428949,2.08476,2537.6,2537.5,0.78784]
[1749908430754,0.78787,2537.5,2537.4,3.99568]
[1749908430951,2.08477,2537.5,2537.4,3.2078]
[1749908431650,2.08477,2537.5,2537.4,3.9957]
[1749908433152,2.08477,2537.5,2537.4,3.2078]
[1749908433352,2.08477,2537.5,2537.4,3.9957]
[1749908435852,2.08477,2537.5,2537.4,3.2078]
[1749908437145,2.08477,2537.5,2537.4,3.9957]
[1749908439160,2.08477,2537.5,2537.4,3.2078]
[1749908442562,2.08477,2537.5,2537.4,3.9957]
[1749908442758,0.78787,2537.5,2537.4,3.9957]
[1749908444259,0.78787,2537.5,2537.4,3.2078]
[1749908444458,0.78787,2537.5,2537.4,3.9957]
[1749908444763,0.78787,2537.5,2537.4,3.2078]
[1749908445361,0.78787,2537.5,2537.4,3.9957]
[1749908445662,0.78787,2537.5,2537.4,3.2078]
[1749908445965,0.78787,2537.5,2537.4,3.9957]
[1749908446463,0.78787,2537.5,2537.4,3.2078]
[1749908446762,0.78787,2537.5,2537.4,3.9957]
[1749908447860,0.6407,2537.7,2537.4,3.2078]
[1749908448050,0.78786,2537.6,2537.5,0.78784]
[1749908448256,0.78786,2537.6,2537.5,1.42724]
[1749908448760,0.78786,2537.6,2537.5,0.6394]
[1749908449462,1.77325948,2537.6,2537.5,1.42727]
[1749908449760,1.77325948,2537.6,2537.5,0.6394]
[1749908449962,1.77325948,2537.6,2537.5,1.42727]
[1749908451862,1.77325948,2537.6,2537.5,0.6394]
[1749908452463,1.77460814,2537.6,2537.5,0.6394]
[1749908453061,1.77460814,2537.6,2537.5,1.42727]
[1749908453463,6.184,2537.9,2537.5,1.42727]
[1749908453663,1.77486353,2537.8,2537.7,0.7878]
[1749908455868,0.98708353,2537.8,2537.7,0.7878]
[1749908456367,1.77485353,2537.8,2537.7,0.7878]
[1749908459871,0.98708353,2537.8,2537.7,0.7878]
[1749908460068,3.2078,2538.0,2537.9,0.78774]
[1749908460266,4.9831655,2538.0,2537.9,0.78774]
[1749908460863,0.78787,2537.5,2537.4,3.27589268]
[1749908461069,0.78787,2537.5,2536.9,0.6416]
[1749908461070,0.78802,2537.0,2536.9,0.6416]
[1749908461263,0.78808,2536.8,2536.7,0.00591156]
[1749908461562,4.98190572,2536.8,2536.7,0.00591156]
[1749908461765,0.78827,2536.2,2536.1,1.3258]
[1749908461972,1.97076,2536.1,2535.6,3.99624]
[1749908462170,0.98602572,2536.0,2535.6,3.2078]
[1749908462470,0.78838,2535.9,2535.7,0.78843]
[1749908462858,0.78838,2535.9,2535.8,0.7884]
[1749908463062,0.78838,2535.9,2535.7,2.1343]
[1749908463262,0.78838,2535.9,2535.7,1.3459]
[1749908463870,0.78838,2535.9,2535.7,2.13431]
[1749908464269,0.78838,2535.9,2535.7,2.1343]
[1749908464570,0.78838,2535.9,2535.7,2.13431]
[1749908465274,0.78835,2536.0,2535.8,0.7884]
[1749908465769,0.79423156,2536.1,2535.9,0.78836]
[1749908465968,0.00591156,2536.1,2536.0,0.78833]
[1749908467174,0.79421156,2536.1,2536.0,0.78833]
[1749908468073,0.00591156,2536.1,2535.7,1.3459]
[1749908468374,0.78835,2536.0,2535.6,3.2078]
[1749908468673,0.78835,2536.0,2535.6,4.5016]
[1749908468871,0.78835,2536.0,2535.9,0.78836]
[1749908469063,0.78836,2535.9,2535.8,0.78838]
[1749908469271,0.78835,2536.0,2535.8,0.78838]
[1749908469467,0.78835,2536.0,2535.9,0.78836]
[1749908470571,0.79423156,2536.1,2536.0,0.78833]
[1749908473177,0.78835,2536.0,2535.9,0.78834]
[1749908473567,0.79422156,2536.1,2536.0,0.78833]
[1749908473969,0.78835,2536.0,2535.9,0.78834]
[1749908474570,0.79423156,2536.1,2536.0,0.78833]
[1749908474971,0.78834,2536.0,2535.9,0.78834]
[1749908475475,0.78843,2535.7,2535.6,3.27589268]
[1749908475669,0.78843,2535.7,2535.6,4.06435268]
[1749908475873,0.78842,2535.8,2535.7,0.7884]
[1749908476280,0.78842,2535.8,2535.6,3.27589268]
[1749908476281,0.78843,2535.7,2535.6,3.27589268]
[1749908476474,2.68363,2535.7,2535.6,0.06809268]
[1749908476673,2.68363,2535.7,2535.6,0.85655268]
[1749908477072,0.6329,2535.7,2535.6,0.85655268]
[1749908477278,1.42133,2535.7,2535.6,0.85655268]
[1749908480686,3.99619,2535.9,2535.8,0.7884]
[1749908480886,10.18419,2535.9,2535.8,0.7884]
[1749908481085,9.3958,2535.9,2535.6,0.06809268]
[1749908481287,0.78843,2535.7,2535.6,0.06809268]
[1749908481485,0.78843,2535.7,2535.6,0.85655268]
[1749908481791,0.78843,2535.7,2535.6,0.06809268]
[1749908481984,0.78843,2535.7,2535.6,0.85655268]
[1749908484887,0.78843,2535.7,2535.6,0.06809268]
[1749908485189,0.78843,2535.7,2535.6,0.85655268]
[1749908485993,0.78843,2535.7,2535.6,0.06809268]
[1749908487688,1.77055321,2535.7,2535.6,0.06809268]
[1749908490492,3.05365321,2535.7,2535.6,0.06809268]
[1749908491093,1.77055321,2535.7,2535.6,0.85655268]
[1749908491391,0.98212321,2535.7,2535.6,0.85655268]
[1749908491593,3.21371156,2536.1,2536.0,0.78833]
[1749908491895,0.00591156,2536.1,2536.0,0.78833]
[1749908492488,0.00591156,2536.1,2536.0,2.05223]
[1749908492891,0.79422156,2536.1,2536.0,0.78833]
[1749908493397,0.78833,2536.0,2535.9,1.41506]
[1749908493799,0.78833,2536.0,2535.9,0.6267]
[1749908493999,0.79423156,2536.1,2536.0,0.78833]
[1749908495794,0.78833,2536.0,2535.9,1.41505]
[1749908495999,0.78833,2536.0,2535.9,0.6267]
[1749908496498,0.78833,2536.0,2535.9,1.41506]
[1749908498098,0.78833,2536.0,2535.9,0.6267]
[1749908498397,0.78833,2536.0,2535.9,1.41506]
[1749908503702,1.76870347,2536.0,2535.9,0.6267]
[1749908506106,0.78843,2535.7,2535.6,0.6422]
[1749908506401,1.76880347,2535.7,2535.6,1.43066]
[1749908509103,1.76905091,2535.7,2535.6,1.43066]
[1749908509803,1.76905091,2535.7,2535.6,1.49875268]
[1749908514505,1.76905091,2535.7,2535.6,0.06809268]
[1749908514707,0.78846,2535.6,2535.5,0.00591156]
[1749908514907,0.78864,2535.0,2534.9,3.2078]
[1749908515205,0.78877,2534.6,2534.5,4.5003]
[1749908515599,0.626,2534.9,2534.5,1.2925]
[1749908515798,0.78877,2534.6,2534.5,1.2925]
[1749908516003,0.78875,2534.7,2534.5,1.2925]
[1749908516205,0.626,2534.9,2534.5,1.2925]
[1749908516405,0.78874,2534.7,2534.6,1.3346]
[1749908516610,0.78877,2534.6,2534.5,2.08128]
[1749908517109,0.78876,2534.7,2534.6,0.78877]
[1749908518111,6.186,2534.9,2534.5,2.5655]
[1749908518315,0.78873,2534.8,2534.7,0.78873]
[1749908518615,6.186,2534.9,2534.6,2.06174]
[1749908518811,0.78872,2534.8,2534.6,1.273]
[1749908519014,0.78872,2534.8,2534.7,0.78872]
[1749908519316,0.78871,2534.8,2534.6,2.06174]
[1749908519519,0.78871,2534.8,2534.7,0.78874]
[1749908520413,0.78874,2534.7,2534.6,2.06175]
[1749908521208,0.78874,2534.7,2534.6,0.78875]
[1749908523016,0.78877,2534.6,2534.5,5.28908]
[1749908523719,0.78877,2534.6,2534.5,4.5003]
[1749908524019,0.78876,2534.7,2534.6,0.78875]
[1749908524517,0.78877,2534.6,2534.5,5.28908]
[1749908524818,0.78876,2534.7,2534.6,0.78875]
[1749908525118,0.78876,2534.7,2534.6,0.85684268]
[1749908525311,0.78876,2534.7,2534.6,0.06809268]
[1749908525515,0.78876,2534.7,2534.6,0.85686268]
[1749908526011,0.78876,2534.7,2534.6,0.06809268]
[1749908526215,0.78876,2534.7,2534.6,0.85686268]
[1749908526813,0.78876,2534.7,2534.6,0.06809268]
[1749908527016,0.78876,2534.7,2534.6,0.85686268]
[1749908527413,0.78876,2534.7,2534.6,0.06809268]
[1749908535424,3.99656,2534.7,2534.6,0.06809268]
[1749908535625,4.9737576,2534.7,2534.6,0.06809268]
[1749908535829,4.97394782,2534.7,2534.6,0.06809268]
[1749908539349,4.97392782,2534.7,2534.6,0.06809268]
[1749908542635,1.76612782,2534.7,2534.6,0.06809268]
[1749908543037,1.76612782,2534.7,2534.6,0.85686268]
[1749908543441,7.95512782,2534.7,2534.6,0.06809268]
[1749908543841,7.95512782,2534.7,2534.6,0.74049268]
[1749908544338,7.95512782,2534.7,2534.6,0.06809268]
[1749908545342,7.95512782,2534.7,2534.6,0.85686268]
[1749908545541,7.95512782,2534.7,2534.6,0.06809268]
[1749908545753,7.95512782,2534.7,2534.6,0.85686268]
[1749908545950,1.76612782,2534.7,2534.6,0.06809268]
[1749908546248,7.95212782,2534.7,2534.6,0.85686268]
[1749908546444,7.16338782,2534.7,2534.6,0.85686268]
[1749908546645,0.97738782,2534.7,2534.6,0.85686268]
[1749908546852,7.95212782,2534.7,2534.6,0.06809268]
[1749908547047,7.95212782,2534.7,2534.6,1.52236268]
[1749908547253,7.16338782,2534.7,2534.6,1.52236268]
[1749908547548,1.76612782,2534.7,2534.6,1.52236268]
[1749908547947,1.76612782,2534.7,2534.6,0.73359268]
[1749908548953,1.76612782,2534.7,2534.6,1.52236268]
[1749908551952,1.76612782,2534.7,2534.6,2.77146268]
[1749908552455,1.76612782,2534.7,2534.6,0.73359268]
[1749908554956,0.78905,2533.7,2533.6,3.99685]
[1749908555254,0.78904,2533.8,2533.7,0.78903]
[1749908555454,0.78901,2533.9,2533.8,0.78902]
[1749908555845,0.78905,2533.7,2533.6,3.8436]
[1749908557955,0.78905,2533.7,2533.6,4.63268]
[1749908558255,0.78905,2533.7,2533.6,3.8436]
[1749908558457,6.97503,2533.8,2533.7,0.78905]
[1749908558649,7.97127072,2533.8,2533.6,4.63265]
[1749908558951,0.78905,2533.7,2533.6,4.63266]
[1749908559252,0.00591156,2534.1,2534.0,0.78895]
[1749908559445,0.00591156,2534.1,2534.0,3.99675]
[1749908567056,0.79483156,2534.1,2534.0,3.99675]
[1749908567256,0.00591156,2534.1,2534.0,3.99675]
[1749908569865,0.00591156,2534.1,2534.0,4.06484268]
[1749908570464,0.78878,2534.6,2534.5,0.7888]
[1749908570762,1.78462816,2534.6,2534.5,0.7888]
[1749908573853,0.78882,2534.5,2534.4,0.7888]
[1749908574165,0.78883,2534.4,2534.3,0.00591156]
[1749908574363,2.44122678,2534.4,2534.3,0.00591156]
[1749908574563,3.74552678,2534.4,2534.3,0.00591156]
[1749908575070,0.78892,2534.1,2534.0,0.06809268]
[1749908575256,7.97181678,2534.1,2534.0,0.06809268]
[1749908575860,9.28481678,2534.1,2534.0,0.06809268]
[1749908576261,3.09781678,2534.1,2534.0,0.06809268]
[1749908576564,9.29481678,2534.1,2534.0,0.06809268]
[1749908576767,1.78481678,2534.1,2534.0,0.06809268]
[1749908577068,0.99589678,2534.1,2534.0,0.85704268]
[1749908577367,1.78481678,2534.1,2534.0,0.85704268]
[1749908577561,0.78892,2534.1,2534.0,0.85704268]
[1749908579467,0.78892,2534.1,2534.0,0.06809268]
[1749908581369,0.78892,2534.1,2534.0,0.85704268]
[1749908581571,1.78620093,2534.1,2534.0,0.85704268]
[1749908582070,1.78620093,2534.1,2534.0,0.06809268]
[1749908582265,1.78620093,2534.1,2534.0,0.85704268]
[1749908582567,1.78620093,2534.1,2534.0,0.06809268]
[1749908583466,1.78620093,2534.1,2534.0,0.85704268]
[1749908583667,1.78620093,2534.1,2534.0,0.06809268]
[1749908584068,1.78620093,2534.1,2534.0,0.85704268]
[1749908585969,0.99728093,2534.1,2534.0,0.85704268]
[1749908586966,0.78891,2534.2,2534.1,0.78892]
[1749908587165,1.78732625,2534.2,2534.1,0.78892]
[1749908588673,0.99841625,2534.2,2534.1,0.78892]
[1749908588868,6.197,2534.4,2534.3,0.78886]
[1749908589068,7.19593479,2534.4,2534.3,3.99666]
[1749908589374,7.98476479,2534.4,2534.3,3.99666]
[1749908589776,7.19593479,2534.4,2534.3,3.99666]
[1749908590778,7.19593479,2534.4,2534.0,3.27589268]
[1749908591073,7.19593479,2534.4,2534.0,4.06481268]
[1749908591074,0.78892,2534.1,2534.0,4.06481268]
[1749908591470,1.9915,2534.3,2534.0,4.06481268]
[1749908591471,1.42562,2534.2,2534.1,0.78889]
[1749908591663,2.42478595,2534.2,2534.1,0.78889]
[1749908591869,0.78892,2534.1,2534.0,4.06482268]
[1749908592479,1.4256,2534.2,2534.1,0.78892]
[1749908592671,2.42484498,2534.2,2534.1,0.78892]
[1749908593676,1.63594498,2534.2,2534.1,0.78892]
[1749908593878,1.43827,2534.3,2534.2,0.78889]
[1749908594074,2.43733919,2534.3,2534.2,0.78889]
[1749908597585,1.78793919,2534.3,2534.2,0.78889]
[1749908599974,0.78892,2534.1,2534.0,3.27589268]
[1749908600282,0.78892,2534.1,2534.0,3.2078]
[1749908600583,0.78901,2533.9,2533.8,0.78899]
[1749908600975,1.7882682,2533.9,2533.8,0.78899]
[1749908601780,0.9992582,2533.9,2533.8,0.78899]
[1749908602184,1.47835,2534.1,2534.0,0.78895]
[1749908602485,2.47757446,2534.1,2534.0,0.78895]
[1749908602680,1.78817446,2534.1,2534.0,0.78895]
[1749908604285,1.78814446,2534.1,2534.0,0.78895]
[1749908607978,0.99922446,2534.1,2534.0,0.78895]
[1749908608286,1.78814446,2534.1,2534.0,0.78895]
[1749908608484,0.99922446,2534.1,2534.0,0.78895]
[1749908609288,1.78814446,2534.1,2534.0,0.78895]
[1749908609484,0.99922446,2534.1,2534.0,0.78895]
[1749908610688,1.4676,2534.2,2534.1,0.78892]
[1749908610988,2.46701015,2534.2,2534.1,0.78892]
[1749908612586,0.78897,2534.1,2534.0,0.78894]
[1749908612783,0.99941015,2534.1,2533.7,3.2078]
[1749908612989,0.99941015,2534.1,2533.6,2.5942]
[1749908612990,0.78902,2533.9,2533.8,0.78899]
[1749908613684,0.78911,2533.5,2533.4,3.99692]
[1749908613896,1.78929502,2533.5,2533.4,3.99692]
[1749908615091,1.00018502,2533.5,2533.4,3.99692]
[1749908615488,0.78911,2533.6,2533.5,0.78911]
[1749908615683,1.78828188,2533.6,2533.5,0.78911]
[1749908616289,0.78911,2533.5,2533.4,3.2078]
[1749908616588,0.78911,2533.5,2533.4,3.99694]
[1749908616999,0.78911,2533.5,2532.7,3.11048554]
[1749908617189,0.78911,2533.5,2530.9,10.2180374]
[1749908617190,3.2078,2532.5,2530.9,10.2180374]
[1749908617387,3.2078,2531.0,2530.4,3.2078]
[1749908617592,1.97435,2531.5,2529.9,9.7138]
[1749908617593,3.2078,2530.5,2529.9,9.7138]
[1749908617790,0.00592335,2530.5,2529.9,9.7138]
[1749908617989,0.00592335,2530.5,2530.2,0.79012]
[1749908618188,0.00592335,2530.5,2529.9,9.7138]
[1749908618387,0.00592335,2530.5,2529.9,3.2078]
[1749908618687,0.00592335,2530.5,2530.4,0.79008]
[1749908619288,0.00592335,2530.5,2530.4,7.29608]
[1749908619801,0.00592335,2530.5,2530.4,0.79008]
[1749908620093,0.00592335,2530.5,2530.3,6.506]
[1749908620298,0.00592335,2530.5,2530.4,0.79008]
[1749908621087,0.00592335,2530.5,2530.4,5.79008]
[1749908621293,3.2078,2531.1,2530.4,6.97519]
[1749908621493,3.2078,2531.1,2531.0,0.78989]
[1749908622491,3.2078,2531.1,2530.5,3.2078]
[1749908622694,0.00592335,2531.3,2530.3,1.97527]
[1749908622695,3.2078,2530.8,2530.3,1.97527]
[1749908622994,3.99767,2531.1,2530.9,0.78991]
[1749908623195,3.2078,2531.1,2530.7,0.78996]
[1749908623401,3.2078,2530.8,2530.5,7.30004]
[1749908623600,3.2078,2530.8,2530.5,0.79002]
[1749908623789,3.2078,2530.8,2530.3,6.51]
[1749908624098,3.2078,2530.8,2530.7,0.78998]
[1749908626191,3.2078,2531.2,2530.6,1.97504]
[1749908626396,3.99765,2531.2,2530.7,1.3436]
[1749908626694,3.2078,2531.2,2531.1,0.78986]
[1749908626900,3.2078,2531.2,2530.7,1.3436]
[1749908627083,3.2078,2531.2,2531.1,0.78986]
[1749908627288,3.99764,2531.2,2531.0,0.78987]
[1749908627490,3.99764,2531.2,2530.5,5.18291]
[1749908627491,3.2078,2531.2,2530.5,3.2078]
[1749908627687,0.00592335,2531.3,2530.3,8.48527]
[1749908627688,3.2078,2530.9,2530.8,0.78995]
[1749908627887,3.99774,2530.9,2530.6,6.511]
[1749908628590,3.2078,2530.9,2530.8,0.78995]
[1749908630999,3.99773,2530.9,2530.8,0.78995]
[1749908631298,0.78995,2530.8,2530.7,0.78996]
[1749908631699,4.5419,2530.9,2530.2,5.18904335]
[1749908631894,0.79006,2530.5,2530.4,0.79007]
[1749908632093,0.79006,2530.5,2530.2,3.21372335]
[1749908632094,3.99784,2530.6,2530.2,0.00592335]
[1749908632293,3.2078,2530.6,2530.2,1.98123335]
[1749908632488,3.99781,2530.6,2530.5,0.79004]
[1749908632791,3.2078,2530.6,2530.5,0.79004]
[1749908633394,3.99781,2530.6,2530.5,0.79004]
[1749908633795,3.99781,2530.6,2530.2,0.00592335]
[1749908633796,3.2078,2530.6,2530.2,0.00592335]
[1749908633996,3.99783,2530.6,2530.2,0.00592335]
[1749908634196,3.99783,2530.6,2530.5,0.79004]
[1749908635098,3.99783,2530.6,2530.2,0.00592335]
[1749908635099,3.2078,2530.6,2530.2,0.00592335]
[1749908635402,2.06365,2530.5,2530.4,0.79005]
[1749908635592,1.2736,2530.5,2530.4,0.79007]
[1749908635904,3.2078,2530.6,2530.5,0.79004]
[1749908637207,3.99781,2530.6,2530.5,0.79004]
[1749908637901,3.2078,2530.6,2530.5,0.79004]
[1749908638998,3.99781,2530.6,2530.5,0.79004]
[1749908639500,3.2078,2530.6,2530.5,0.79004]
[1749908639798,3.99781,2530.6,2530.5,0.79004]
[1749908640001,3.2078,2530.6,2530.5,0.79004]
[1749908640204,3.99781,2530.6,2530.5,0.79004]
[1749908640795,3.2078,2530.6,2530.5,0.79004]
[1749908641197,9.7198,2531.0,2530.9,0.78992]
[1749908641397,10.91992949,2531.0,2530.9,0.78992]
[1749908642001,4.40792949,2531.0,2530.8,0.78993]
[1749908642203,0.78994,2530.9,2530.8,0.78993]
[1749908642401,3.2078,2531.0,2530.9,0.78992]
[1749908643299,0.78996,2530.8,2530.7,0.78994]
[1749908643499,0.78996,2530.8,2530.7,0.404739]
[1749908643699,1.21581848,2530.8,2530.5,1.9751]
[1749908644002,5.3639,2531.0,2530.9,0.78992]
[1749908644298,5.20496601,2531.0,2530.9,0.78992]
[1749908644507,1.20726601,2531.0,2530.9,0.78992]
[1749908645003,1.20726601,2531.0,2530.9,7.30292]
[1749908646409,1.20726601,2531.0,2530.9,9.22682]
[1749908646902,1.20726601,2531.0,2530.9,7.96572]
[1749908648401,1.20726601,2531.0,2530.9,25.47892]
[1749908649403,1.20726601,2531.0,2530.9,26.85742]
[1749908650603,5.57078585,2531.3,2531.2,0.78982]
[1749908650801,6.74397276,2531.3,2531.2,0.4935633]
[1749908651802,4.38691026,2531.3,2531.2,0.4935633]
[1749908652305,6.74397276,2531.3,2531.2,0.4935633]
[1749908652705,4.38691026,2531.3,2531.2,0.4935633]
[1749908653413,5.66961026,2531.3,2531.2,0.4935633]
[1749908654206,8.81648276,2531.3,2531.2,0.78982]
[1749908654402,9.44438276,2531.3,2531.2,0.78982]
[1749908655406,8.65457276,2531.3,2531.0,24.645]
[1749908655704,8.65457276,2531.3,2531.1,0.78986]
[1749908655705,1.17318691,2531.2,2531.1,0.78986]
[1749908656005,2.52308691,2531.2,2531.1,0.78986]
[1749908656403,1.17318691,2531.2,2531.1,3.99766]
[1749908656602,0.5010901,2531.2,2531.1,4.68846]
[1749908656902,0.00592335,2531.3,2531.2,0.78982]
[1749908661211,0.00592335,2531.3,2531.2,0.85791268]
[1749908666115,0.00592335,2531.3,2531.2,31.98991268]
[1749908674810,3.35e-06,2531.3,2531.2,31.98991268]
[1749908677621,3.35e-06,2531.3,2531.2,36.98991268]
[1749908678420,3.35e-06,2531.3,2531.2,31.98991268]
[1749908680310,3.35e-06,2531.3,2531.2,31.80291268]
[1749908684620,3.35e-06,2531.3,2531.2,31.78691268]
[1749908689123,3.35e-06,2531.3,2531.2,0.85791268]
[1749908689323,3.35e-06,2531.3,2531.2,31.74591268]
[1749908692729,3.35e-06,2531.3,2531.2,34.95371268]
[1749908695322,3.35e-06,2531.3,2531.2,34.92571268]
[1749908701430,3.35e-06,2531.3,2531.2,4.06571268]
[1749908701638,3.35e-06,2531.3,2531.2,34.88571268]
[1749908704935,3.35e-06,2531.3,2531.2,34.87471268]
[1749908707539,3.35e-06,2531.3,2531.2,4.06571268]
[1749908707834,3.35e-06,2531.3,2531.2,34.86071268]
[1749908708228,3.35e-06,2531.3,2531.2,34.86971268]
[1749908713537,3.35e-06,2531.3,2531.2,4.06571268]
[1749908713738,3.35e-06,2531.3,2531.2,34.75071268]
[1749908715134,3.35e-06,2531.3,2531.2,10.42971268]
[1749908715338,3.35e-06,2531.3,2531.2,4.06571268]
[1749908715636,3.35e-06,2531.3,2531.2,34.74371268]
[1749908716134,3.35e-06,2531.3,2531.2,10.42971268]
[1749908716330,3.35e-06,2531.3,2531.2,34.73771268]
[1749908718442,3.35e-06,2531.3,2531.2,34.72871268]
[1749908718836,3.35e-06,2531.3,2531.2,4.06571268]
[1749908719041,3.35e-06,2531.3,2531.2,34.72371268]
[1749908719537,3.35e-06,2531.3,2531.2,4.06571268]
[1749908719844,3.35e-06,2531.3,2531.2,34.72171268]
[1749908722442,3.35e-06,2531.3,2531.2,7.22191268]
[1749908722650,3.35e-06,2531.3,2531.2,31.50191268]
[1749908723344,3.35e-06,2531.3,2531.2,7.22191268]
[1749908723645,3.35e-06,2531.3,2531.2,31.49891268]
[1749908724045,3.35e-06,2531.3,2531.2,0.85791268]
[1749908724446,3.35e-06,2531.3,2531.2,31.49691268]
[1749908727749,5.00000335,2531.3,2531.2,0.85791268]
[1749908727952,5.00000335,2531.3,2531.2,25.12391268]
[1749908728246,6.15531316,2531.3,2531.2,0.85791268]
[1749908728459,6.15531316,2531.3,2531.2,25.11591268]
[1749908729452,1.15531316,2531.3,2531.2,25.11591268]
[1749908730151,6.15531316,2531.3,2531.2,25.11591268]
[1749908730449,1.15493083,2531.3,2531.2,25.11591268]
[1749908731245,1.81861129,2531.3,2531.2,25.11591268]
[1749908731546,1.81888949,2531.3,2531.2,25.11591268]
[1749908732238,0.66380335,2531.3,2531.2,25.11591268]
[1749908732650,0.66380335,2531.3,2531.2,0.85791268]
[1749908732847,1.81880167,2531.3,2531.2,0.85791268]
[1749908733148,1.81880167,2531.3,2531.2,25.11091268]
[1749908733545,3.08200167,2531.3,2531.2,25.11091268]
[1749908735248,1.92700335,2531.3,2531.2,25.11091268]
[1749908736253,3.08199443,2531.3,2531.2,25.11091268]
[1749908736754,3.08199443,2531.3,2531.2,25.10291268]
[1749908738862,3.08199443,2531.3,2531.2,25.08691268]
[1749908740255,3.87178443,2531.3,2531.2,25.08691268]
[1749908741550,3.87178443,2531.3,2531.2,0.85791268]
[1749908741746,7.07958443,2531.3,2531.2,0.06809268]
[1749908741958,7.07958443,2531.3,2531.2,24.28409268]
[1749908742660,7.07958443,2531.3,2531.2,25.07391268]
[1749908743157,12.07958443,2531.3,2531.2,0.06809268]